[Event "Early-Titled-Tuesday-Blitz-December-26-2023"]
[Site "Chess.com"]
[Date "2023.12.26"]
[Round "7"]
[White "TanitoluwaAps116"]
[Black "Ramla2020"]
[Result "1-0"]
[WhiteElo "2717"]
[BlackElo "2457"]
[TimeControl "180+1"]
[EndTime "9:18:53 PST"]
[Termination "TanitoluwaAps116 won by checkmate"]

1. e4 {[%clk 0:02:48.1]} 1... e5 {[%clk 0:02:59.8]} 2. Nf3 {[%clk 0:02:47.1]}
2... d6 {[%clk 0:03:00.1]} 3. d4 {[%clk 0:02:41.3]} 3... Nd7 {[%clk 0:03:01]} 4.
Nc3 {[%clk 0:02:41.3]} 4... c6 {[%clk 0:03:00.9]} 5. Bc4 {[%clk 0:02:34.3]} 5...
Be7 {[%clk 0:03:00.7]} 6. O-O {[%clk 0:02:33.5]} 6... Ngf6 {[%clk 0:03:00.6]} 7.
Re1 {[%clk 0:02:31.7]} 7... b5 {[%clk 0:02:59.4]} 8. Bb3 {[%clk 0:02:30.2]} 8...
O-O {[%clk 0:02:58.8]} 9. d5 {[%clk 0:02:29.9]} 9... Bb7 {[%clk 0:02:57.1]} 10.
dxc6 {[%clk 0:02:30.2]} 10... Bxc6 {[%clk 0:02:58]} 11. Nd5 {[%clk 0:02:30.5]}
11... Nc5 {[%clk 0:02:50.6]} 12. Nxf6+ {[%clk 0:02:29.3]} 12... Bxf6 {[%clk
0:02:49.6]} 13. Bd5 {[%clk 0:02:29.9]} 13... Qc7 {[%clk 0:02:47.6]} 14. c3
{[%clk 0:02:25.7]} 14... Rab8 {[%clk 0:02:32.9]} 15. Bg5 {[%clk 0:02:18.2]}
15... Bxg5 {[%clk 0:02:30.7]} 16. Nxg5 {[%clk 0:02:09.2]} 16... h6 {[%clk
0:02:30.5]} 17. Nf3 {[%clk 0:02:06.3]} 17... a5 {[%clk 0:02:29.4]} 18. Rc1
{[%clk 0:02:05]} 18... Ne6 {[%clk 0:02:27.8]} 19. Nh4 {[%clk 0:01:59]} 19... Nf4
{[%clk 0:02:20.5]} 20. Bxc6 {[%clk 0:01:57.8]} 20... Qxc6 {[%clk 0:02:20.2]} 21.
Nf5 {[%clk 0:01:58.7]} 21... Kh7 {[%clk 0:02:08.9]} 22. g3 {[%clk 0:01:38.5]}
22... Nh3+ {[%clk 0:02:01]} 23. Kg2 {[%clk 0:01:38.5]} 23... Ng5 {[%clk
0:02:01.4]} 24. Qg4 {[%clk 0:01:28.7]} 24... g6 {[%clk 0:01:55.6]} 25. Ne7
{[%clk 0:01:27]} 25... Qb7 {[%clk 0:01:48]} 26. Nd5 {[%clk 0:01:26.5]} 26... f5
{[%clk 0:01:43.3]} 27. Qe2 {[%clk 0:01:20.4]} 27... Nxe4 {[%clk 0:01:40.8]} 28.
Rcd1 {[%clk 0:01:19.6]} 28... Nf6 {[%clk 0:01:33]} 29. Qf3 {[%clk 0:01:18.6]}
29... e4 {[%clk 0:01:13.5]} 30. Nxf6+ {[%clk 0:01:17.5]} 30... Rxf6 {[%clk
0:01:14.4]} 31. Qe3 {[%clk 0:01:14.1]} 31... g5 {[%clk 0:01:09.2]} 32. Rd4
{[%clk 0:01:02.6]} 32... Re8 {[%clk 0:01:04.4]} 33. Kg1 {[%clk 0:00:55.7]} 33...
d5 {[%clk 0:00:45]} 34. Red1 {[%clk 0:00:54.5]} 34... Re5 {[%clk 0:00:45.1]} 35.
f4 {[%clk 0:00:51.9]} 35... gxf4 {[%clk 0:00:41.9]} 36. gxf4 {[%clk 0:00:47.1]}
36... Re7 {[%clk 0:00:39.6]} 37. Rxd5 {[%clk 0:00:46.7]} 37... Rg7+ {[%clk
0:00:39.5]} 38. Kh1 {[%clk 0:00:45.8]} 38... Qf7 {[%clk 0:00:37.9]} 39. Qh3
{[%clk 0:00:41.2]} 39... Qg6 {[%clk 0:00:34.6]} 40. Rxb5 {[%clk 0:00:36.2]}
40... e3 {[%clk 0:00:23]} 41. Re5 {[%clk 0:00:29]} 41... Rd6 {[%clk 0:00:21.7]}
42. Re1 {[%clk 0:00:18.8]} 42... Rd2 {[%clk 0:00:17.5]} 43. Qxf5 {[%clk
0:00:16.3]} 43... Qxf5 {[%clk 0:00:14.8]} 44. Rxf5 {[%clk 0:00:17.2]} 44... Re7
{[%clk 0:00:14.4]} 45. Re5 {[%clk 0:00:13.3]} 45... Rxe5 {[%clk 0:00:14.2]} 46.
fxe5 {[%clk 0:00:14.2]} 46... e2 {[%clk 0:00:12.6]} 47. Kg2 {[%clk 0:00:13.9]}
47... Rxb2 {[%clk 0:00:12.3]} 48. a4 {[%clk 0:00:13.3]} 48... Kg6 {[%clk
0:00:11.2]} 49. Kf3 {[%clk 0:00:12.5]} 49... Rc2 {[%clk 0:00:10.8]} 50. Rxe2
{[%clk 0:00:10.9]} 50... Rxc3+ {[%clk 0:00:11.7]} 51. Re3 {[%clk 0:00:11.1]}
51... Rc4 {[%clk 0:00:09.6]} 52. e6 {[%clk 0:00:11]} 52... Rc8 {[%clk
0:00:07.5]} 53. e7 {[%clk 0:00:06.6]} 53... Re8 {[%clk 0:00:08.4]} 54. Kf4
{[%clk 0:00:06.1]} 54... Kf6 {[%clk 0:00:08.7]} 55. h4 {[%clk 0:00:06.1]} 55...
Rxe7 {[%clk 0:00:07.7]} 56. Rxe7 {[%clk 0:00:07]} 56... Kxe7 {[%clk 0:00:08.4]}
57. Kf5 {[%clk 0:00:07.6]} 57... Kf7 {[%clk 0:00:08.5]} 58. h5 {[%clk 0:00:08]}
58... Kg7 {[%clk 0:00:07.7]} 59. Ke6 {[%clk 0:00:08.5]} 59... Kg8 {[%clk
0:00:07.7]} 60. Kf6 {[%clk 0:00:04]} 60... Kh7 {[%clk 0:00:07.6]} 61. Kf7 {[%clk
0:00:04.4]} 61... Kh8 {[%clk 0:00:08.5]} 62. Kg6 {[%clk 0:00:05]} 62... Kg8
{[%clk 0:00:09.2]} 63. Kxh6 {[%clk 0:00:05.8]} 63... Kh8 {[%clk 0:00:10.1]} 64.
Kg6 {[%clk 0:00:06.5]} 64... Kg8 {[%clk 0:00:09.8]} 65. Kf6 {[%clk 0:00:07.4]}
65... Kh7 {[%clk 0:00:09.8]} 66. Ke5 {[%clk 0:00:07.9]} 66... Kh6 {[%clk
0:00:10.7]} 67. Kd5 {[%clk 0:00:08.7]} 67... Kxh5 {[%clk 0:00:11.5]} 68. Kc5
{[%clk 0:00:09.6]} 68... Kg6 {[%clk 0:00:12.2]} 69. Kb5 {[%clk 0:00:10.5]} 69...
Kf6 {[%clk 0:00:12.9]} 70. Kxa5 {[%clk 0:00:11.4]} 70... Ke6 {[%clk 0:00:13.8]}
71. Kb6 {[%clk 0:00:12.3]} 71... Kd7 {[%clk 0:00:14.3]} 72. Kb7 {[%clk
0:00:12.4]} 72... Kd6 {[%clk 0:00:14.4]} 73. a5 {[%clk 0:00:13.3]} 73... Kc5
{[%clk 0:00:15.3]} 74. a6 {[%clk 0:00:13.6]} 74... Kb5 {[%clk 0:00:16.2]} 75. a7
{[%clk 0:00:14.5]} 75... Kc5 {[%clk 0:00:16.8]} 76. a8=Q {[%clk 0:00:15.4]}
76... Kd4 {[%clk 0:00:17.3]} 77. Qd8+ {[%clk 0:00:16]} 77... Ke3 {[%clk
0:00:18.2]} 78. Qd5 {[%clk 0:00:16.3]} 78... Kf2 {[%clk 0:00:19.1]} 79. Qe4
{[%clk 0:00:16.6]} 79... Kg3 {[%clk 0:00:19.1]} 80. Qf5 {[%clk 0:00:16.8]} 80...
Kg2 {[%clk 0:00:19.1]} 81. Qf4 {[%clk 0:00:16.9]} 81... Kh3 {[%clk 0:00:19.1]}
82. Qg5 {[%clk 0:00:17]} 82... Kh2 {[%clk 0:00:20]} 83. Qg4 {[%clk 0:00:17.9]}
83... Kh1 {[%clk 0:00:20.4]} 84. Kc6 {[%clk 0:00:18.8]} 84... Kh2 {[%clk
0:00:21.2]} 85. Kd5 {[%clk 0:00:19.7]} 85... Kh1 {[%clk 0:00:21.9]} 86. Ke4
{[%clk 0:00:20.6]} 86... Kh2 {[%clk 0:00:22.7]} 87. Kf3 {[%clk 0:00:21.5]} 87...
Kh1 {[%clk 0:00:23.5]} 88. Qg2# {[%clk 0:00:22.4]} 1-0

[Event "Early-Titled-Tuesday-Blitz-December-26-2023"]
[Site "Chess.com"]
[Date "2023.12.26"]
[Round "7"]
[White "SCIM"]
[Black "nekotyanof"]
[Result "0-1"]
[WhiteElo "2514"]
[BlackElo "2642"]
[TimeControl "180+1"]
[EndTime "9:19:00 PST"]
[Termination "nekotyanof won on time"]

1. d4 {[%clk 0:03:00.9]} 1... Nf6 {[%clk 0:03:00]} 2. c4 {[%clk 0:03:00.5]} 2...
e6 {[%clk 0:02:59.9]} 3. Nc3 {[%clk 0:03:01]} 3... d5 {[%clk 0:03:00.6]} 4. cxd5
{[%clk 0:02:59]} 4... exd5 {[%clk 0:03:01.5]} 5. Bg5 {[%clk 0:02:58.6]} 5... Be7
{[%clk 0:03:02.2]} 6. Qc2 {[%clk 0:02:58.6]} 6... h6 {[%clk 0:03:02.8]} 7. Bh4
{[%clk 0:02:55.9]} 7... c6 {[%clk 0:03:03.1]} 8. e3 {[%clk 0:02:56]} 8... O-O
{[%clk 0:03:03.8]} 9. Bd3 {[%clk 0:02:56]} 9... Ne8 {[%clk 0:03:04.7]} 10. Bg3
{[%clk 0:02:53.9]} 10... Nd7 {[%clk 0:03:02.2]} 11. Nge2 {[%clk 0:02:53.8]}
11... Ndf6 {[%clk 0:03:02.6]} 12. O-O {[%clk 0:02:53.9]} 12... Bd6 {[%clk
0:03:03.2]} 13. f3 {[%clk 0:02:52]} 13... Bxg3 {[%clk 0:02:56.2]} 14. Nxg3
{[%clk 0:02:50.7]} 14... Be6 {[%clk 0:02:55.9]} 15. Rad1 {[%clk 0:02:45.6]}
15... c5 {[%clk 0:02:52.8]} 16. dxc5 {[%clk 0:02:41.4]} 16... Rc8 {[%clk
0:02:52.8]} 17. Nce2 {[%clk 0:02:36.4]} 17... Qa5 {[%clk 0:02:50.9]} 18. Rc1
{[%clk 0:02:29]} 18... Nd6 {[%clk 0:02:43.7]} 19. Nd4 {[%clk 0:02:20.1]} 19...
Nc4 {[%clk 0:02:43.2]} 20. Bxc4 {[%clk 0:02:04.4]} 20... dxc4 {[%clk 0:02:42.8]}
21. Nxe6 {[%clk 0:02:01.6]} 21... fxe6 {[%clk 0:02:42.5]} 22. Qxc4 {[%clk
0:02:02]} 22... Nd5 {[%clk 0:02:42.7]} 23. e4 {[%clk 0:01:57]} 23... Ne3 {[%clk
0:02:42.5]} 24. Qxe6+ {[%clk 0:01:54.8]} 24... Kh8 {[%clk 0:02:43.4]} 25. Rfe1
{[%clk 0:01:24.6]} 25... Qd2 {[%clk 0:02:42.2]} 26. Qh3 {[%clk 0:01:24.1]} 26...
Rxc5 {[%clk 0:02:41.6]} 27. Rb1 {[%clk 0:01:08.6]} 27... Rc2 {[%clk 0:02:40.3]}
28. Nf1 {[%clk 0:01:04.3]} 28... Qf2+ {[%clk 0:02:38.8]} 29. Kh1 {[%clk
0:01:02.6]} 29... Nxg2 {[%clk 0:02:39.7]} 30. Rec1 {[%clk 0:00:55.4]} 30... Nf4
{[%clk 0:02:31]} 31. Qg3 {[%clk 0:00:50.7]} 31... Qe2 {[%clk 0:02:11.4]} 32.
Rxc2 {[%clk 0:00:46.6]} 32... Qxc2 {[%clk 0:02:12.3]} 33. Re1 {[%clk 0:00:46.1]}
33... Nd3 {[%clk 0:02:10.2]} 34. Re3 {[%clk 0:00:39.1]} 34... Nxb2 {[%clk
0:02:03.8]} 35. e5 {[%clk 0:00:37.9]} 35... Nc4 {[%clk 0:02:02.6]} 36. Re4
{[%clk 0:00:36.7]} 36... Qd3 {[%clk 0:01:59]} 37. Kg2 {[%clk 0:00:35.1]} 37...
Rf5 {[%clk 0:01:43.7]} 38. h4 {[%clk 0:00:33.6]} 38... Qc2+ {[%clk 0:01:35.7]}
39. Kg1 {[%clk 0:00:31.9]} 39... Qc3 {[%clk 0:01:23.7]} 40. e6 {[%clk
0:00:29.9]} 40... Rxf3 {[%clk 0:01:23.8]} 41. Qg2 {[%clk 0:00:26.9]} 41... Nd6
{[%clk 0:01:14.5]} 42. e7 {[%clk 0:00:26.5]} 42... Rxf1+ {[%clk 0:01:13.1]} 43.
Qxf1 {[%clk 0:00:23.5]} 43... Qc5+ {[%clk 0:01:13.4]} 44. Kh2 {[%clk 0:00:20.5]}
44... Qc7 {[%clk 0:01:09.3]} 45. Qf8+ {[%clk 0:00:15.1]} 45... Kh7 {[%clk
0:01:09.5]} 46. Rf4 {[%clk 0:00:15.7]} 46... Qc2+ {[%clk 0:01:07.5]} 47. Rf2
{[%clk 0:00:14.5]} 47... Qe4 {[%clk 0:01:07.8]} 48. Rf4 {[%clk 0:00:12.7]} 48...
Qe2+ {[%clk 0:01:06.7]} 49. Rf2 {[%clk 0:00:12.7]} 49... Qe5+ {[%clk 0:01:07.1]}
50. Kg2 {[%clk 0:00:13]} 50... Qd5+ {[%clk 0:01:06.8]} 51. Kg1 {[%clk
0:00:12.2]} 51... Qd1+ {[%clk 0:01:05.8]} 52. Kg2 {[%clk 0:00:11.8]} 52... Qg4+
{[%clk 0:01:06.1]} 53. Kf1 {[%clk 0:00:12]} 53... Qc4+ {[%clk 0:01:03.4]} 54.
Kg2 {[%clk 0:00:10.6]} 54... Qd5+ {[%clk 0:01:01]} 55. Kg1 {[%clk 0:00:10.1]}
55... Qh5 {[%clk 0:00:58.3]} 56. Rf4 {[%clk 0:00:08.5]} 56... Qd1+ {[%clk
0:00:57.8]} 57. Kg2 {[%clk 0:00:08.5]} 57... Qd5+ {[%clk 0:00:57.9]} 58. Kg1
{[%clk 0:00:08.6]} 58... Qe5 {[%clk 0:00:47.5]} 59. Kg2 {[%clk 0:00:08.5]} 59...
Qb2+ {[%clk 0:00:46.9]} 60. Kh3 {[%clk 0:00:08]} 60... Qa3+ {[%clk 0:00:40.6]}
61. Rf3 {[%clk 0:00:07.9]} 61... Qa4 {[%clk 0:00:38.9]} 62. Rg3 {[%clk
0:00:07.1]} 62... Qd7+ {[%clk 0:00:38.5]} 63. Kh2 {[%clk 0:00:05.9]} 63... g6
{[%clk 0:00:31.8]} 64. Rf3 {[%clk 0:00:04.5]} 64... Qe6 {[%clk 0:00:28.6]} 65.
Rf2 {[%clk 0:00:03.5]} 65... Qe5+ {[%clk 0:00:28.9]} 66. Kg1 {[%clk 0:00:03.8]}
66... Qe1+ {[%clk 0:00:28.7]} 67. Kg2 {[%clk 0:00:03.9]} 67... Qe4+ {[%clk
0:00:29.4]} 68. Kh3 {[%clk 0:00:04.2]} 68... Qe6+ {[%clk 0:00:29.5]} 69. Kg3
{[%clk 0:00:03.4]} 69... Ne4+ {[%clk 0:00:26.9]} 70. Kh2 {[%clk 0:00:03.5]}
70... Qe5+ {[%clk 0:00:22.7]} 71. Rf4 {[%clk 0:00:03.1]} 71... Nd6 {[%clk
0:00:22.1]} 72. h5 {[%clk 0:00:02]} 72... g5 {[%clk 0:00:21.9]} 73. Kg2 {[%clk
0:00:02.9]} 73... Qxf4 {[%clk 0:00:20.2]} 74. e8=Q {[%clk 0:00:02.7]} 74... Nxe8
{[%clk 0:00:20.5]} 75. Qe7+ {[%clk 0:00:02.7]} 75... Ng7 {[%clk 0:00:20.5]} 76.
Qe4+ {[%clk 0:00:02.5]} 76... Qxe4+ {[%clk 0:00:20.6]} 0-1

[Event "Early-Titled-Tuesday-Blitz-December-26-2023"]
[Site "Chess.com"]
[Date "2023.12.26"]
[Round "7"]
[White "snowlord"]
[Black "enestnrvrd"]
[Result "1/2-1/2"]
[WhiteElo "2907"]
[BlackElo "2666"]
[TimeControl "180+1"]
[EndTime "9:19:04 PST"]
[Termination "Game drawn - insufficient material"]

1. c4 {[%clk 0:03:00.9]} 1... Nf6 {[%clk 0:02:54.1]} 2. Nc3 {[%clk 0:02:58.6]}
2... c5 {[%clk 0:02:52.9]} 3. g3 {[%clk 0:02:57.7]} 3... e6 {[%clk 0:02:52.3]}
4. Nf3 {[%clk 0:02:57.8]} 4... d5 {[%clk 0:02:52.9]} 5. cxd5 {[%clk 0:02:58.7]}
5... exd5 {[%clk 0:02:53.1]} 6. d4 {[%clk 0:02:59.3]} 6... Nc6 {[%clk
0:02:53.2]} 7. Bg2 {[%clk 0:03:00]} 7... cxd4 {[%clk 0:02:53.8]} 8. Nxd4 {[%clk
0:03:00.6]} 8... Bc5 {[%clk 0:02:54.4]} 9. Nb3 {[%clk 0:03:01.3]} 9... Bb6
{[%clk 0:02:51.3]} 10. Na4 {[%clk 0:03:01.7]} 10... O-O {[%clk 0:02:44.7]} 11.
Nxb6 {[%clk 0:03:01.7]} 11... axb6 {[%clk 0:02:44.9]} 12. O-O {[%clk 0:03:01.3]}
12... h6 {[%clk 0:02:42]} 13. Be3 {[%clk 0:03:01]} 13... Re8 {[%clk 0:02:37.5]}
14. a3 {[%clk 0:03:00.9]} 14... Bf5 {[%clk 0:02:34.3]} 15. Nd4 {[%clk
0:02:57.5]} 15... Be4 {[%clk 0:02:33.1]} 16. Bh3 {[%clk 0:02:56.8]} 16... Ne5
{[%clk 0:02:30.7]} 17. Bf4 {[%clk 0:02:52.7]} 17... Ng6 {[%clk 0:02:21.5]} 18.
Bd2 {[%clk 0:02:48.6]} 18... Ne5 {[%clk 0:02:14.3]} 19. b3 {[%clk 0:02:40.5]}
19... Nh7 {[%clk 0:01:27.8]} 20. f3 {[%clk 0:02:30.9]} 20... Bg6 {[%clk
0:01:26]} 21. Bg2 {[%clk 0:02:20.1]} 21... Nc6 {[%clk 0:01:24.7]} 22. Bc3 {[%clk
0:02:01.9]} 22... Rc8 {[%clk 0:01:17.4]} 23. Rf2 {[%clk 0:01:55.7]} 23... Ng5
{[%clk 0:00:58.3]} 24. a4 {[%clk 0:01:36.2]} 24... Nxd4 {[%clk 0:00:57.4]} 25.
Bxd4 {[%clk 0:01:25.7]} 25... Bc2 {[%clk 0:00:53.5]} 26. Qd2 {[%clk 0:01:25.9]}
26... Bxb3 {[%clk 0:00:53.3]} 27. Qb2 {[%clk 0:01:26]} 27... Ne6 {[%clk
0:00:45.6]} 28. Bxg7 {[%clk 0:01:19]} 28... Nxg7 {[%clk 0:00:45.3]} 29. Qxb3
{[%clk 0:01:19.2]} 29... d4 {[%clk 0:00:42.1]} 30. Rd1 {[%clk 0:00:58.7]} 30...
Re3 {[%clk 0:00:39.9]} 31. Qb4 {[%clk 0:00:53.5]} 31... Ne6 {[%clk 0:00:33.2]}
32. f4 {[%clk 0:00:46.7]} 32... d3 {[%clk 0:00:32.9]} 33. f5 {[%clk 0:00:21.1]}
33... Ng5 {[%clk 0:00:30.9]} 34. h4 {[%clk 0:00:18.2]} 34... Nh7 {[%clk
0:00:26.3]} 35. Qf4 {[%clk 0:00:16.2]} 35... Qe7 {[%clk 0:00:06.9]} 36. Qg4+
{[%clk 0:00:09.8]} 36... Kh8 {[%clk 0:00:06.9]} 37. f6 {[%clk 0:00:10.5]} 37...
Qf8 {[%clk 0:00:05.2]} 38. exd3 {[%clk 0:00:11]} 38... Rce8 {[%clk 0:00:04.4]}
39. Bxb7 {[%clk 0:00:07.8]} 39... Qg8 {[%clk 0:00:04.2]} 40. Qxg8+ {[%clk
0:00:05.5]} 40... Rxg8 {[%clk 0:00:05.1]} 41. Rf3 {[%clk 0:00:04.2]} 41... Rxf3
{[%clk 0:00:05]} 42. Bxf3 {[%clk 0:00:05.1]} 42... Rxg3+ {[%clk 0:00:04.8]} 43.
Kf2 {[%clk 0:00:05.9]} 43... Rg6 {[%clk 0:00:05.7]} 44. Rb1 {[%clk 0:00:05.3]}
44... Rxf6 {[%clk 0:00:06.1]} 45. Ke3 {[%clk 0:00:06]} 45... Nf8 {[%clk
0:00:06.6]} 46. Bd5 {[%clk 0:00:05.2]} 46... Nd7 {[%clk 0:00:06.7]} 47. Rc1
{[%clk 0:00:03.4]} 47... Kg7 {[%clk 0:00:06.6]} 48. Be4 {[%clk 0:00:03.7]} 48...
Nc5 {[%clk 0:00:06.7]} 49. a5 {[%clk 0:00:03.7]} 49... Nxe4 {[%clk 0:00:06.8]}
50. dxe4 {[%clk 0:00:03]} 50... bxa5 {[%clk 0:00:06.9]} 51. Rc7 {[%clk
0:00:02.9]} 51... Ra6 {[%clk 0:00:06.8]} 52. Rc3 {[%clk 0:00:03.6]} 52... a4
{[%clk 0:00:07.2]} 53. Ra3 {[%clk 0:00:04.3]} 53... Kf6 {[%clk 0:00:07.9]} 54.
Kf4 {[%clk 0:00:04.6]} 54... Ke6 {[%clk 0:00:08.3]} 55. Ke3 {[%clk 0:00:03.5]}
55... Ke5 {[%clk 0:00:08.4]} 56. Kf3 {[%clk 0:00:02.9]} 56... h5 {[%clk
0:00:07.7]} 57. Ke3 {[%clk 0:00:03.2]} 57... f6 {[%clk 0:00:07.8]} 58. Kf3
{[%clk 0:00:03.5]} 58... Kd4 {[%clk 0:00:08.4]} 59. Kf4 {[%clk 0:00:04.4]} 59...
Kc4 {[%clk 0:00:09]} 60. Kf5 {[%clk 0:00:03.5]} 60... Kb4 {[%clk 0:00:09.5]} 61.
Ra1 {[%clk 0:00:03.4]} 61... a3 {[%clk 0:00:10]} 62. Kg6 {[%clk 0:00:04.1]}
62... a2 {[%clk 0:00:10.2]} 63. Kxh5 {[%clk 0:00:04.5]} 63... Kb3 {[%clk
0:00:08]} 64. Kg6 {[%clk 0:00:05.2]} 64... Kb2 {[%clk 0:00:08.6]} 65. Rh1 {[%clk
0:00:05.4]} 65... Rc6 {[%clk 0:00:05.8]} 66. Rh2+ {[%clk 0:00:05.2]} 66... Rc2
{[%clk 0:00:06.3]} 67. Rh1 {[%clk 0:00:05.9]} 67... Rg2+ {[%clk 0:00:03.2]} 68.
Kxf6 {[%clk 0:00:05.7]} 68... Rg4 {[%clk 0:00:03.9]} 69. h5 {[%clk 0:00:05.5]}
69... Rxe4 {[%clk 0:00:04.5]} 70. Rh2+ {[%clk 0:00:04.6]} 70... Kb3 {[%clk
0:00:04]} 71. Rxa2 {[%clk 0:00:05.5]} 71... Kxa2 {[%clk 0:00:04.3]} 72. h6
{[%clk 0:00:06.4]} 72... Rf4+ {[%clk 0:00:04.4]} 73. Kg7 {[%clk 0:00:07.3]}
73... Rg4+ {[%clk 0:00:03.8]} 74. Kf6 {[%clk 0:00:07.7]} 74... Rf4+ {[%clk
0:00:03.8]} 75. Kg7 {[%clk 0:00:08.2]} 75... Rg4+ {[%clk 0:00:03.7]} 76. Kf6
{[%clk 0:00:08.5]} 76... Rh4 {[%clk 0:00:04.6]} 77. Kg6 {[%clk 0:00:08.4]} 77...
Rxh6+ {[%clk 0:00:04]} 78. Kxh6 {[%clk 0:00:08.7]} 1/2-1/2

[Event "Early-Titled-Tuesday-Blitz-December-26-2023"]
[Site "Chess.com"]
[Date "2023.12.26"]
[Round "7"]
[White "CFalcons8"]
[Black "Journey_to_GrandMaster_YT"]
[Result "0-1"]
[WhiteElo "2233"]
[BlackElo "2533"]
[TimeControl "180+1"]
[EndTime "9:19:59 PST"]
[Termination "Journey_to_GrandMaster_YT won on time"]

1. e4 {[%clk 0:03:00.9]} 1... d6 {[%clk 0:03:00.9]} 2. d4 {[%clk 0:03:00.6]}
2... Nf6 {[%clk 0:02:59.7]} 3. Nc3 {[%clk 0:02:59.3]} 3... e5 {[%clk 0:02:55.5]}
4. Nge2 {[%clk 0:02:52.2]} 4... Be7 {[%clk 0:02:53.9]} 5. f3 {[%clk 0:02:51.7]}
5... O-O {[%clk 0:02:53.7]} 6. Be3 {[%clk 0:02:51.2]} 6... c6 {[%clk 0:02:53.7]}
7. Qd2 {[%clk 0:02:44.5]} 7... b5 {[%clk 0:02:53.8]} 8. g4 {[%clk 0:02:34]} 8...
b4 {[%clk 0:02:41.1]} 9. Nd1 {[%clk 0:02:27.9]} 9... exd4 {[%clk 0:02:40]} 10.
Nxd4 {[%clk 0:02:23.2]} 10... c5 {[%clk 0:02:37.8]} 11. Ne2 {[%clk 0:02:06.2]}
11... Nc6 {[%clk 0:02:28.2]} 12. Ng3 {[%clk 0:01:58.5]} 12... Ne5 {[%clk
0:02:14.1]} 13. Be2 {[%clk 0:01:40.4]} 13... Be6 {[%clk 0:02:13]} 14. g5 {[%clk
0:01:23.1]} 14... Nfd7 {[%clk 0:02:10.6]} 15. f4 {[%clk 0:01:14]} 15... Nc4
{[%clk 0:02:09]} 16. Bxc4 {[%clk 0:01:12.6]} 16... Bxc4 {[%clk 0:02:09.9]} 17.
Nf5 {[%clk 0:01:08.5]} 17... Re8 {[%clk 0:02:00]} 18. Nf2 {[%clk 0:01:03.1]}
18... Nb6 {[%clk 0:01:51.4]} 19. Rg1 {[%clk 0:00:32.3]} 19... Bf8 {[%clk
0:01:48.4]} 20. O-O-O {[%clk 0:00:21.5]} 20... d5 {[%clk 0:01:24.8]} 21. Ng4
{[%clk 0:00:13.2]} 21... d4 {[%clk 0:01:16.2]} 22. Ngh6+ {[%clk 0:00:12.4]}
22... gxh6 {[%clk 0:01:12.8]} 23. gxh6+ {[%clk 0:00:12.4]} 23... Kh8 {[%clk
0:01:12.4]} 24. Qg2 {[%clk 0:00:12.6]} 24... Bxh6 {[%clk 0:00:51.4]} 25. Nxh6
{[%clk 0:00:11.9]} 25... Rg8 {[%clk 0:00:51.2]} 26. Nxg8 {[%clk 0:00:05.5]}
26... Qxg8 {[%clk 0:00:52.1]} 27. Qh3 {[%clk 0:00:04.5]} 27... Qe8 {[%clk
0:00:46.7]} 28. Rxd4 {[%clk 0:00:04.1]} 28... Be6 {[%clk 0:00:38.8]} 29. Rd6
{[%clk 0:00:03.9]} 29... Bxh3 {[%clk 0:00:36.1]} 30. Bxc5 {[%clk 0:00:04]} 30...
Qxe4 {[%clk 0:00:07.5]} 31. Bd4+ {[%clk 0:00:04.4]} 31... Qxd4 {[%clk
0:00:08.1]} 32. Rxd4 {[%clk 0:00:05.1]} 32... Be6 {[%clk 0:00:07.7]} 33. Rxb4
{[%clk 0:00:04.7]} 33... Nd5 {[%clk 0:00:07.9]} 34. Rd4 {[%clk 0:00:04.8]} 34...
Ne7 {[%clk 0:00:07.6]} 35. Kd2 {[%clk 0:00:03.6]} 35... Rb8 {[%clk 0:00:07]} 36.
b3 {[%clk 0:00:02.7]} 36... Nf5 {[%clk 0:00:07.6]} 37. Rd3 {[%clk 0:00:02.6]}
37... h6 {[%clk 0:00:05.8]} 38. c4 {[%clk 0:00:03.2]} 38... Kh7 {[%clk 0:00:06]}
39. Kc3 {[%clk 0:00:04.1]} 39... a5 {[%clk 0:00:05.8]} 40. a3 {[%clk 0:00:03.7]}
40... Rc8 {[%clk 0:00:04.9]} 41. Rgd1 {[%clk 0:00:03.1]} 41... a4 {[%clk
0:00:05.4]} 42. Kb4 {[%clk 0:00:02.6]} 42... axb3 {[%clk 0:00:05.2]} 43. c5
{[%clk 0:00:02.4]} 43... Rb8+ {[%clk 0:00:05.1]} 44. Kc3 {[%clk 0:00:02.8]}
44... b2 {[%clk 0:00:05.4]} 45. Rb1 {[%clk 0:00:03.1]} 45... Ne7 {[%clk
0:00:05.7]} 46. Rd2 {[%clk 0:00:03.1]} 46... Nd5+ {[%clk 0:00:05.8]} 47. Kd4
{[%clk 0:00:03.6]} 47... Nxf4 {[%clk 0:00:06]} 48. Rdxb2 {[%clk 0:00:04]} 48...
Rd8+ {[%clk 0:00:06.1]} 49. Ke5 {[%clk 0:00:03.8]} 49... Nd3+ {[%clk 0:00:05.7]}
50. Kf6 {[%clk 0:00:04.3]} 50... Nxb2 {[%clk 0:00:06.3]} 51. Rxb2 {[%clk
0:00:04.6]} 51... Rd5 {[%clk 0:00:06.5]} 52. Rc2 {[%clk 0:00:03.5]} 52... Rd7
{[%clk 0:00:06.3]} 53. c6 {[%clk 0:00:03.4]} 53... Rc7 {[%clk 0:00:06.6]} 54.
Ke5 {[%clk 0:00:04]} 54... Kg6 {[%clk 0:00:06.9]} 55. Kd6 {[%clk 0:00:04.6]}
55... Rc8 {[%clk 0:00:07.5]} 56. c7 {[%clk 0:00:05.1]} 56... Kf6 {[%clk
0:00:07.9]} 57. Rf2+ {[%clk 0:00:04.3]} 57... Kg7 {[%clk 0:00:08.3]} 58. a4
{[%clk 0:00:04.4]} 58... Kf8 {[%clk 0:00:07.9]} 59. a5 {[%clk 0:00:04.2]} 59...
Ra8 {[%clk 0:00:08]} 60. Rb2 {[%clk 0:00:03.5]} 60... Ra6+ {[%clk 0:00:06.7]}
61. Rb6 {[%clk 0:00:03.3]} 61... Rxa5 {[%clk 0:00:07]} 62. Rb8+ {[%clk 0:00:03]}
62... Kg7 {[%clk 0:00:07.4]} 63. c8=Q {[%clk 0:00:03.4]} 63... Bxc8 {[%clk
0:00:07.7]} 64. Rxc8 {[%clk 0:00:04.3]} 64... Ra2 {[%clk 0:00:07.7]} 65. h4
{[%clk 0:00:04.3]} 65... Ra4 {[%clk 0:00:07.8]} 66. Ke5 {[%clk 0:00:04.1]} 66...
Rxh4 {[%clk 0:00:07.6]} 67. Kf5 {[%clk 0:00:04.7]} 67... Rh1 {[%clk 0:00:07.6]}
68. Rc2 {[%clk 0:00:04]} 68... Rg1 {[%clk 0:00:07.6]} 69. Rf2 {[%clk 0:00:03.1]}
69... Rg6 {[%clk 0:00:06.8]} 70. Rh2 {[%clk 0:00:02.9]} 70... Rg5+ {[%clk
0:00:06.7]} 71. Kf4 {[%clk 0:00:03.3]} 71... Kg6 {[%clk 0:00:07.3]} 72. Rb2
{[%clk 0:00:02.5]} 72... f6 {[%clk 0:00:07.1]} 73. Rb8 {[%clk 0:00:02.4]} 73...
h5 {[%clk 0:00:06.7]} 74. Rg8+ {[%clk 0:00:02.3]} 74... Kh6 {[%clk 0:00:06.8]}
75. Rh8+ {[%clk 0:00:02.6]} 75... Kg7 {[%clk 0:00:07.2]} 76. Rb8 {[%clk
0:00:02.5]} 76... Rg4+ {[%clk 0:00:07]} 77. Kf5 {[%clk 0:00:02.1]} 77... Rg5+
{[%clk 0:00:07.4]} 78. Kf4 {[%clk 0:00:01.8]} 78... h4 {[%clk 0:00:08.1]} 79.
Rb7+ {[%clk 0:00:01.5]} 79... Kg6 {[%clk 0:00:08.4]} 80. Rb8 {[%clk 0:00:02.4]}
80... Rh5 {[%clk 0:00:08.1]} 81. Rg8+ {[%clk 0:00:02.9]} 81... Kf7 {[%clk
0:00:08.3]} 82. Rg1 {[%clk 0:00:02.8]} 82... h3 {[%clk 0:00:07.2]} 83. Rh1
{[%clk 0:00:03.1]} 83... Ke6 {[%clk 0:00:06.9]} 84. Kg4 {[%clk 0:00:02.9]} 84...
Rg5+ {[%clk 0:00:07.1]} 85. Kh4 {[%clk 0:00:01.4]} 85... Kf5 {[%clk 0:00:04.6]}
86. Rf1+ {[%clk 0:00:01.7]} 86... Ke5 {[%clk 0:00:03.2]} 87. Kxh3 {[%clk
0:00:02.6]} 87... Rg8 {[%clk 0:00:03.2]} 88. Re1+ {[%clk 0:00:02.5]} 88... Kf5
{[%clk 0:00:03.1]} 89. Rf1+ {[%clk 0:00:03]} 89... Ke5 {[%clk 0:00:03.4]} 90.
Re1+ {[%clk 0:00:03.5]} 90... Kd6 {[%clk 0:00:03.8]} 91. Rd1+ {[%clk 0:00:03.6]}
91... Ke6 {[%clk 0:00:04.4]} 92. Re1+ {[%clk 0:00:03.9]} 92... Kf7 {[%clk
0:00:04.8]} 93. Kh4 {[%clk 0:00:03.2]} 93... f5 {[%clk 0:00:04.8]} 94. Kh3
{[%clk 0:00:03]} 94... Kf6 {[%clk 0:00:05.4]} 95. Rb1 {[%clk 0:00:02.8]} 95...
f4 {[%clk 0:00:05.2]} 96. Rb5 {[%clk 0:00:02.2]} 96... Rg5 {[%clk 0:00:03.7]}
0-1